[Event "Late-Titled-Tuesday-Blitz-February-06-2024"]
[Site "Chess.com"]
[Date "2024.02.06"]
[Round "1"]
[White "TanitoluwaAps116"]
[Black "Kingstar70"]
[Result "1-0"]
[WhiteElo "2822"]
[BlackElo "2440"]
[TimeControl "180+1"]
[EndTime "14:08:07 PST"]
[Termination "TanitoluwaAps116 won on time"]

1. e4 {[%clk 0:02:56.6]} 1... c5 {[%clk 0:02:59.4]} 2. Nf3 {[%clk 0:02:56.5]}
2... d6 {[%clk 0:02:59.8]} 3. Bb5+ {[%clk 0:02:56.8]} 3... Nd7 {[%clk
0:02:59.5]} 4. c3 {[%clk 0:02:56.4]} 4... a6 {[%clk 0:02:59.9]} 5. Bd3 {[%clk
0:02:56.4]} 5... e6 {[%clk 0:02:59.2]} 6. Bc2 {[%clk 0:02:54.9]} 6... Ngf6
{[%clk 0:02:59.5]} 7. d4 {[%clk 0:02:54.5]} 7... Be7 {[%clk 0:02:59.6]} 8. O-O
{[%clk 0:02:53.9]} 8... O-O {[%clk 0:02:59.9]} 9. e5 {[%clk 0:02:54.1]} 9...
dxe5 {[%clk 0:02:59.9]} 10. dxe5 {[%clk 0:02:55]} 10... Nd5 {[%clk 0:03:00.3]}
11. Qd3 {[%clk 0:02:54.6]} 11... g6 {[%clk 0:03:00.2]} 12. Bh6 {[%clk
0:02:52.6]} 12... Re8 {[%clk 0:03:00.5]} 13. Nbd2 {[%clk 0:02:51]} 13... Qc7
{[%clk 0:03:00.8]} 14. Rfe1 {[%clk 0:02:47.2]} 14... b5 {[%clk 0:03:00.9]} 15.
Qe4 {[%clk 0:02:37.2]} 15... Bb7 {[%clk 0:03:00.7]} 16. Qg4 {[%clk 0:02:37.5]}
16... Rad8 {[%clk 0:02:47.5]} 17. h4 {[%clk 0:02:35.7]} 17... Nf8 {[%clk
0:02:44.7]} 18. h5 {[%clk 0:02:32.4]} 18... Rd7 {[%clk 0:02:17.2]} 19. Ne4
{[%clk 0:02:26.2]} 19... Red8 {[%clk 0:02:15.7]} 20. hxg6 {[%clk 0:02:18.8]}
20... hxg6 {[%clk 0:02:15.5]} 21. Nfg5 {[%clk 0:02:11]} 21... Qxe5 {[%clk
0:01:57.2]} 22. Nxf7 {[%clk 0:02:04.8]} 22... Qf5 {[%clk 0:01:47.7]} 23. Qxf5
{[%clk 0:01:36.9]} 23... exf5 {[%clk 0:01:41.2]} 24. Nxd8 {[%clk 0:01:36.4]}
24... Rxd8 {[%clk 0:01:25.5]} 25. Ng5 {[%clk 0:01:33.9]} 25... Bf6 {[%clk
0:01:15.2]} 26. Rad1 {[%clk 0:01:30.1]} 26... c4 {[%clk 0:01:01.6]} 27. Rd2
{[%clk 0:01:17.9]} 27... Bg7 {[%clk 0:00:30.9]} 28. Bxg7 {[%clk 0:01:17.2]}
28... Kxg7 {[%clk 0:00:31.8]} 29. Re7+ {[%clk 0:01:06.6]} 29... Kf6 {[%clk
0:00:19.5]} 30. Rxb7 {[%clk 0:00:56.4]} 30... Kxg5 {[%clk 0:00:19.5]} 31. Ra7
{[%clk 0:00:49.9]} 31... Rd6 {[%clk 0:00:17.7]} 32. Bd1 {[%clk 0:00:46.6]} 32...
Ne6 {[%clk 0:00:10.6]} 33. Bf3 {[%clk 0:00:42.1]} 33... Nef4 {[%clk 0:00:08.4]}
34. Bxd5 {[%clk 0:00:36.3]} 34... Nxd5 {[%clk 0:00:06.4]} 35. a4 {[%clk
0:00:25.2]} 35... Kf6 {[%clk 0:00:06]} 36. axb5 {[%clk 0:00:24.8]} 36... axb5
{[%clk 0:00:06.9]} 37. Rb7 {[%clk 0:00:25.2]} 37... b4 {[%clk 0:00:05.6]} 38.
Rb5 {[%clk 0:00:19.3]} 38... Ke6 {[%clk 0:00:04.1]} 39. cxb4 {[%clk 0:00:17.6]}
39... Nf4 {[%clk 0:00:03.6]} 40. Rxd6+ {[%clk 0:00:16]} 40... Kxd6 {[%clk
0:00:04.5]} 41. Rc5 {[%clk 0:00:13.8]} 41... Nd3 {[%clk 0:00:04.5]} 42. Rxc4
{[%clk 0:00:13.4]} 42... Nxb2 {[%clk 0:00:05]} 43. Rc3 {[%clk 0:00:12.5]} 43...
Na4 {[%clk 0:00:05.3]} 44. Ra3 {[%clk 0:00:12.6]} 44... Nb2 {[%clk 0:00:02.8]}
45. Ra6+ {[%clk 0:00:12.3]} 45... Ke5 {[%clk 0:00:03.2]} 46. Rxg6 {[%clk
0:00:13.2]} 46... Nd3 {[%clk 0:00:03.5]} 47. g3 {[%clk 0:00:12.9]} 47... Nxb4
{[%clk 0:00:03.6]} 48. Rb6 {[%clk 0:00:11.6]} 48... Nd5 {[%clk 0:00:03.7]} 49.
Rb5 {[%clk 0:00:12]} 49... Ke4 {[%clk 0:00:04.3]} 50. Kg2 {[%clk 0:00:11.8]}
50... Nc3 {[%clk 0:00:04.5]} 51. Rb4+ {[%clk 0:00:11.5]} 51... Ke5 {[%clk
0:00:04.1]} 52. Kf3 {[%clk 0:00:11.2]} 52... Ne4 {[%clk 0:00:03.5]} 53. Rxe4+
{[%clk 0:00:08.9]} 53... fxe4+ {[%clk 0:00:03.4]} 54. Ke3 {[%clk 0:00:08.9]}
54... Kd5 {[%clk 0:00:03.8]} 55. Kf4 {[%clk 0:00:05.8]} 55... Kd4 {[%clk
0:00:04.1]} 56. g4 {[%clk 0:00:06.4]} 56... Kd5 {[%clk 0:00:02.8]} 57. g5 {[%clk
0:00:06.3]} 1-0

[Event "Late-Titled-Tuesday-Blitz-February-06-2024"]
[Site "Chess.com"]
[Date "2024.02.06"]
[Round "1"]
[White "komogro"]
[Black "dropstoneDP"]
[Result "0-1"]
[WhiteElo "2517"]
[BlackElo "3010"]
[TimeControl "180+1"]
[EndTime "14:08:10 PST"]
[Termination "dropstoneDP won on time"]

1. Nf3 {[%clk 0:02:59.9]} 1... d5 {[%clk 0:02:59.7]} 2. g3 {[%clk 0:02:59.9]}
2... g6 {[%clk 0:02:56.7]} 3. Bg2 {[%clk 0:02:59.1]} 3... Bg7 {[%clk 0:02:56.8]}
4. O-O {[%clk 0:02:58.8]} 4... e5 {[%clk 0:02:56.4]} 5. c4 {[%clk 0:02:57.9]}
5... dxc4 {[%clk 0:02:54]} 6. Na3 {[%clk 0:02:57.1]} 6... Ne7 {[%clk 0:02:53.3]}
7. Nxc4 {[%clk 0:02:56.9]} 7... Nbc6 {[%clk 0:02:53.1]} 8. d3 {[%clk 0:02:56.8]}
8... O-O {[%clk 0:02:53.5]} 9. Rb1 {[%clk 0:02:56.5]} 9... a5 {[%clk 0:02:52.8]}
10. b3 {[%clk 0:02:55.4]} 10... Re8 {[%clk 0:02:48.5]} 11. Bb2 {[%clk
0:02:55.2]} 11... Nf5 {[%clk 0:02:47.3]} 12. a3 {[%clk 0:02:53.1]} 12... h6
{[%clk 0:02:38.7]} 13. Re1 {[%clk 0:02:44.1]} 13... Ra6 {[%clk 0:02:37.6]} 14.
e3 {[%clk 0:02:32.3]} 14... Nd6 {[%clk 0:02:35.2]} 15. Qc2 {[%clk 0:02:29.4]}
15... Bf5 {[%clk 0:02:32.9]} 16. Nh4 {[%clk 0:02:19.8]} 16... Nxc4 {[%clk
0:02:21.4]} 17. Nxf5 {[%clk 0:02:19.2]} 17... Nxb2 {[%clk 0:02:21.4]} 18. Nxg7
{[%clk 0:02:16]} 18... Kxg7 {[%clk 0:02:22.3]} 19. Qxb2 {[%clk 0:02:11.3]} 19...
Rb6 {[%clk 0:02:19.3]} 20. Rbd1 {[%clk 0:02:06.7]} 20... Qd6 {[%clk 0:02:14.6]}
21. h4 {[%clk 0:02:00.4]} 21... h5 {[%clk 0:02:14.1]} 22. Rd2 {[%clk 0:01:30]}
22... Qe6 {[%clk 0:02:06.2]} 23. Rb1 {[%clk 0:01:18.5]} 23... Rd8 {[%clk
0:02:04.6]} 24. Qc3 {[%clk 0:01:17.4]} 24... Rd6 {[%clk 0:01:52.4]} 25. d4
{[%clk 0:01:15.3]} 25... exd4 {[%clk 0:01:51.7]} 26. exd4 {[%clk 0:01:16.2]}
26... Qf6 {[%clk 0:01:51.7]} 27. Rbd1 {[%clk 0:01:11.3]} 27... Rd7 {[%clk
0:01:45.4]} 28. Rd3 {[%clk 0:01:02.4]} 28... Ne7 {[%clk 0:01:39.8]} 29. d5
{[%clk 0:00:59.5]} 29... Qxc3 {[%clk 0:01:39.1]} 30. Rxc3 {[%clk 0:01:00.3]}
30... Rbd6 {[%clk 0:01:39.5]} 31. Rdc1 {[%clk 0:00:59.8]} 31... Nxd5 {[%clk
0:01:38.4]} 32. Bxd5 {[%clk 0:00:59.7]} 32... Rxd5 {[%clk 0:01:39.3]} 33. Rxc7
{[%clk 0:00:59.7]} 33... Rxc7 {[%clk 0:01:30.7]} 34. Rxc7 {[%clk 0:00:59.5]}
34... b6 {[%clk 0:01:31]} 35. Rc4 {[%clk 0:00:51.5]} 35... Rd3 {[%clk
0:01:30.7]} 36. b4 {[%clk 0:00:47]} 36... Rxa3 {[%clk 0:01:30.7]} 37. bxa5
{[%clk 0:00:47.1]} 37... bxa5 {[%clk 0:01:31.6]} 38. Rc6 {[%clk 0:00:44.9]}
38... Kf8 {[%clk 0:01:28.8]} 39. Rc7 {[%clk 0:00:42.8]} 39... a4 {[%clk
0:01:29.1]} 40. Ra7 {[%clk 0:00:42.2]} 40... Ra1+ {[%clk 0:01:28.8]} 41. Kg2
{[%clk 0:00:42.6]} 41... a3 {[%clk 0:01:29.1]} 42. Kf3 {[%clk 0:00:42]} 42...
Kg7 {[%clk 0:01:29.3]} 43. Kf4 {[%clk 0:00:37]} 43... Kf6 {[%clk 0:01:28]} 44.
Ra6+ {[%clk 0:00:36.5]} 44... Kg7 {[%clk 0:01:25.3]} 45. Ra7 {[%clk 0:00:37.3]}
45... Ra2 {[%clk 0:01:21.6]} 46. f3 {[%clk 0:00:35.8]} 46... Ra1 {[%clk
0:01:20.8]} 47. Ra6 {[%clk 0:00:34.5]} 47... f6 {[%clk 0:01:11.1]} 48. Ra7+
{[%clk 0:00:28.8]} 48... Kf8 {[%clk 0:01:11]} 49. Ra6 {[%clk 0:00:29.7]} 49...
Ke7 {[%clk 0:01:10.9]} 50. Ra7+ {[%clk 0:00:29.9]} 50... Kd8 {[%clk 0:01:10.4]}
51. Ra6 {[%clk 0:00:24.3]} 51... a2 {[%clk 0:01:10.5]} 52. Ra7 {[%clk
0:00:16.8]} 52... Kc8 {[%clk 0:01:10.4]} 53. Ra3 {[%clk 0:00:15]} 53... Kb7
{[%clk 0:01:10.6]} 54. Ra4 {[%clk 0:00:15]} 54... Kb6 {[%clk 0:01:10.8]} 55. Ra8
{[%clk 0:00:14.8]} 55... Kb5 {[%clk 0:01:11]} 56. Rb8+ {[%clk 0:00:12.2]} 56...
Kc4 {[%clk 0:01:11.2]} 57. Rc8+ {[%clk 0:00:12.2]} 57... Kd3 {[%clk 0:01:11.4]}
58. Rd8+ {[%clk 0:00:09.5]} 58... Ke2 {[%clk 0:01:11.7]} 59. Re8+ {[%clk
0:00:09.3]} 59... Kf2 {[%clk 0:01:11.7]} 60. Ra8 {[%clk 0:00:09]} 60... Kg2
{[%clk 0:01:12.2]} 61. Ra7 {[%clk 0:00:08.6]} 61... Kh3 {[%clk 0:01:12.3]} 62.
Ra3 {[%clk 0:00:08]} 62... Rc1 {[%clk 0:01:06.8]} 63. Rxa2 {[%clk 0:00:08]}
63... Rc4+ {[%clk 0:01:07.5]} 64. Ke3 {[%clk 0:00:07.8]} 64... Kxg3 {[%clk
0:01:08.4]} 65. Ra6 {[%clk 0:00:07.6]} 65... Rf4 {[%clk 0:01:08.1]} 66. Ra1
{[%clk 0:00:03.5]} 66... Rxf3+ {[%clk 0:01:08.3]} 67. Ke4 {[%clk 0:00:03.7]}
67... Rf4+ {[%clk 0:01:07.4]} 68. Ke3 {[%clk 0:00:03.8]} 68... Rg4 {[%clk
0:01:04.4]} 69. Rf1 {[%clk 0:00:02.3]} 69... f5 {[%clk 0:01:03.2]} 0-1

[Event "Late-Titled-Tuesday-Blitz-February-06-2024"]
[Site "Chess.com"]
[Date "2024.02.06"]
[Round "1"]
[White "emeli_chess"]
[Black "mr_gustavo"]
[Result "1-0"]
[WhiteElo "2398"]
[BlackElo "2703"]
[TimeControl "180+1"]
[EndTime "14:08:22 PST"]
[Termination "emeli_chess won on time"]

1. d4 {[%clk 0:03:00.9]} 1... Nf6 {[%clk 0:02:59.9]} 2. c4 {[%clk 0:03:01]} 2...
g6 {[%clk 0:03:00.5]} 3. Nc3 {[%clk 0:03:01.3]} 3... Bg7 {[%clk 0:03:01.1]} 4.
e4 {[%clk 0:03:01.6]} 4... O-O {[%clk 0:03:01.3]} 5. Be3 {[%clk 0:03:00.9]} 5...
d6 {[%clk 0:02:59.1]} 6. f3 {[%clk 0:03:01]} 6... c5 {[%clk 0:02:58.1]} 7. Nge2
{[%clk 0:03:00.1]} 7... Nc6 {[%clk 0:02:53.1]} 8. d5 {[%clk 0:03:00]} 8... Ne5
{[%clk 0:02:52.9]} 9. Ng3 {[%clk 0:03:00.3]} 9... e6 {[%clk 0:02:48.5]} 10. Be2
{[%clk 0:02:59.8]} 10... exd5 {[%clk 0:02:48.4]} 11. cxd5 {[%clk 0:02:59]} 11...
h5 {[%clk 0:02:44.3]} 12. O-O {[%clk 0:02:58.5]} 12... h4 {[%clk 0:02:44]} 13.
Nh1 {[%clk 0:02:58.4]} 13... a6 {[%clk 0:02:28.2]} 14. a4 {[%clk 0:02:57.2]}
14... Re8 {[%clk 0:02:19.2]} 15. Nf2 {[%clk 0:02:55.5]} 15... c4 {[%clk
0:02:06.7]} 16. Qd2 {[%clk 0:02:37.3]} 16... Nfd7 {[%clk 0:01:57.9]} 17. f4
{[%clk 0:02:30.1]} 17... Nd3 {[%clk 0:01:55.5]} 18. Nxd3 {[%clk 0:02:27.9]}
18... cxd3 {[%clk 0:01:55.2]} 19. Bxd3 {[%clk 0:02:14.8]} 19... h3 {[%clk
0:01:55.6]} 20. g3 {[%clk 0:02:14]} 20... Nf6 {[%clk 0:01:43.2]} 21. Bd4 {[%clk
0:02:05.2]} 21... Ng4 {[%clk 0:01:30.2]} 22. Be2 {[%clk 0:01:47.3]} 22... Nf6
{[%clk 0:00:58.3]} 23. Bf3 {[%clk 0:01:39.3]} 23... Nd7 {[%clk 0:00:44.7]} 24.
Bxg7 {[%clk 0:01:37]} 24... Kxg7 {[%clk 0:00:45.6]} 25. Qd4+ {[%clk 0:01:36.5]}
25... Kg8 {[%clk 0:00:45.4]} 26. Rac1 {[%clk 0:01:11.7]} 26... Nc5 {[%clk
0:00:43]} 27. Rc2 {[%clk 0:01:02.6]} 27... Bd7 {[%clk 0:00:36.1]} 28. e5 {[%clk
0:00:53.8]} 28... Bf5 {[%clk 0:00:32.1]} 29. Ne4 {[%clk 0:00:43.1]} 29... Bxe4
{[%clk 0:00:24.8]} 30. Bxe4 {[%clk 0:00:42.8]} 30... Rc8 {[%clk 0:00:22.8]} 31.
e6 {[%clk 0:00:33.7]} 31... f5 {[%clk 0:00:14]} 32. Bd3 {[%clk 0:00:25.5]} 32...
a5 {[%clk 0:00:10.8]} 33. Rfc1 {[%clk 0:00:24.9]} 33... Rc7 {[%clk 0:00:06.5]}
34. Rxc5 {[%clk 0:00:19.6]} 34... dxc5 {[%clk 0:00:06.2]} 35. Qe5 {[%clk
0:00:19.4]} 35... Rd7 {[%clk 0:00:03.9]} 36. Bc4 {[%clk 0:00:18.2]} 36... Rd6
{[%clk 0:00:04.2]} 37. Rd1 {[%clk 0:00:16.2]} 37... Re7 {[%clk 0:00:04.5]} 38.
Rd2 {[%clk 0:00:15.9]} 38... Kh7 {[%clk 0:00:03.8]} 39. Re2 {[%clk 0:00:14.1]}
39... Qc7 {[%clk 0:00:02.8]} 40. Qf6 {[%clk 0:00:14]} 40... Qd8 {[%clk 0:00:03]}
41. Re5 {[%clk 0:00:12.3]} 41... Rb6 {[%clk 0:00:03.1]} 42. Qh4+ {[%clk
0:00:11.1]} 42... Kg7 {[%clk 0:00:02.7]} 43. b3 {[%clk 0:00:11.1]} 43... Rd6
{[%clk 0:00:02.6]} 44. Qxh3 {[%clk 0:00:10.9]} 44... Rb6 {[%clk 0:00:02.7]} 45.
Qg2 {[%clk 0:00:10.7]} 45... Rd6 {[%clk 0:00:03.2]} 46. Qb2 {[%clk 0:00:10.8]}
46... Kg8 {[%clk 0:00:02.6]} 47. Re1 {[%clk 0:00:09.2]} 47... Qf8 {[%clk
0:00:02.7]} 48. Qe5 {[%clk 0:00:08.7]} 48... Qd8 {[%clk 0:00:02.8]} 49. h4
{[%clk 0:00:08.3]} 49... b6 {[%clk 0:00:02.2]} 50. Kf2 {[%clk 0:00:08.1]} 50...
Kh7 {[%clk 0:00:02.3]} 51. h5 {[%clk 0:00:08.3]} 51... gxh5 {[%clk 0:00:02.3]}
52. Qxf5+ {[%clk 0:00:08.3]} 52... Kg8 {[%clk 0:00:03]} 53. Qe5 {[%clk
0:00:08.6]} 53... Rg7 {[%clk 0:00:02.9]} 54. f5 {[%clk 0:00:08.3]} 54... Qg5
{[%clk 0:00:02.8]} 55. Re3 {[%clk 0:00:07.5]} 55... Rd8 {[%clk 0:00:02]} 56. f6
{[%clk 0:00:07.5]} 56... Rg6 {[%clk 0:00:01.9]} 57. Qxg5 {[%clk 0:00:07.1]}
57... Rxg5 {[%clk 0:00:02.2]} 58. e7 {[%clk 0:00:07.3]} 58... Re8 {[%clk
0:00:02]} 59. d6+ {[%clk 0:00:07.7]} 59... Kh7 {[%clk 0:00:02.1]} 60. d7 {[%clk
0:00:08.1]} 1-0

[Event "Late-Titled-Tuesday-Blitz-February-06-2024"]
[Site "Chess.com"]
[Date "2024.02.06"]
[Round "1"]
[White "Hrant_ChessMood"]
[Black "Redzishchess"]
[Result "0-1"]
[WhiteElo "2930"]
[BlackElo "2518"]
[TimeControl "180+1"]
[EndTime "14:08:26 PST"]
[Termination "Redzishchess won on time"]

1. Nf3 {[%clk 0:02:56.8]} 1... b6 {[%clk 0:02:59.6]} 2. c4 {[%clk 0:02:49.1]}
2... Bb7 {[%clk 0:02:58.5]} 3. Nc3 {[%clk 0:02:50]} 3... Nf6 {[%clk 0:02:58.6]}
4. d3 {[%clk 0:02:49.8]} 4... c5 {[%clk 0:02:47.3]} 5. g3 {[%clk 0:02:46.1]}
5... Bxf3 {[%clk 0:02:43.7]} 6. exf3 {[%clk 0:02:45.1]} 6... d5 {[%clk
0:02:44.6]} 7. Bg2 {[%clk 0:02:41.7]} 7... e6 {[%clk 0:02:37.9]} 8. O-O {[%clk
0:02:41.1]} 8... Be7 {[%clk 0:02:29]} 9. f4 {[%clk 0:02:40.6]} 9... O-O {[%clk
0:02:28.4]} 10. f5 {[%clk 0:02:40.7]} 10... Nc6 {[%clk 0:02:23.2]} 11. Bg5
{[%clk 0:02:34.3]} 11... Rc8 {[%clk 0:01:39.1]} 12. Re1 {[%clk 0:02:27.4]} 12...
dxc4 {[%clk 0:01:15.8]} 13. dxc4 {[%clk 0:02:26.4]} 13... exf5 {[%clk
0:01:09.2]} 14. Bxc6 {[%clk 0:02:03.9]} 14... Rxc6 {[%clk 0:01:10.1]} 15. Qf3
{[%clk 0:02:03]} 15... Rd6 {[%clk 0:00:16.6]} 16. Qxf5 {[%clk 0:01:59.7]} 16...
Nd5 {[%clk 0:00:16.6]} 17. Nxd5 {[%clk 0:01:53.9]} 17... Bxg5 {[%clk 0:00:16.1]}
18. Re2 {[%clk 0:01:54.5]} 18... g6 {[%clk 0:00:15.4]} 19. Qf3 {[%clk
0:01:33.9]} 19... Bf6 {[%clk 0:00:15.3]} 20. Rae1 {[%clk 0:01:31.8]} 20... Bd4
{[%clk 0:00:14.4]} 21. h4 {[%clk 0:01:30.3]} 21... h5 {[%clk 0:00:14.4]} 22. Kg2
{[%clk 0:01:30.4]} 22... Kg7 {[%clk 0:00:13.2]} 23. b3 {[%clk 0:01:30.5]} 23...
Re6 {[%clk 0:00:11.1]} 24. Qf4 {[%clk 0:01:20.5]} 24... Rxe2 {[%clk 0:00:11]}
25. Rxe2 {[%clk 0:01:21.4]} 25... Re8 {[%clk 0:00:11.5]} 26. Re4 {[%clk
0:01:19.7]} 26... Rxe4 {[%clk 0:00:11.1]} 27. Qxe4 {[%clk 0:01:20.6]} 27... Qd6
{[%clk 0:00:10.5]} 28. b4 {[%clk 0:01:15.1]} 28... Qe6 {[%clk 0:00:10.1]} 29.
Qxe6 {[%clk 0:01:07.2]} 29... fxe6 {[%clk 0:00:11]} 30. Nc7 {[%clk 0:01:01.8]}
30... Kf6 {[%clk 0:00:10.4]} 31. bxc5 {[%clk 0:00:58.5]} 31... Bxc5 {[%clk
0:00:11.3]} 32. Kf3 {[%clk 0:00:59]} 32... Ke5 {[%clk 0:00:10.9]} 33. Ke2 {[%clk
0:00:58.9]} 33... Kd4 {[%clk 0:00:09.1]} 34. Nxe6+ {[%clk 0:00:58.7]} 34... Kxc4
{[%clk 0:00:09.7]} 35. Nf4 {[%clk 0:00:59.4]} 35... Kc3 {[%clk 0:00:05.7]} 36.
Nxg6 {[%clk 0:00:59.5]} 36... Kb2 {[%clk 0:00:06.2]} 37. Nf4 {[%clk 0:00:49.3]}
37... Kxa2 {[%clk 0:00:05.9]} 38. Nxh5 {[%clk 0:00:50.2]} 38... b5 {[%clk
0:00:06.5]} 39. Nf4 {[%clk 0:00:51.1]} 39... b4 {[%clk 0:00:07.1]} 40. Nd3
{[%clk 0:00:52]} 40... Be7 {[%clk 0:00:02.2]} 41. Kd1 {[%clk 0:00:28.6]} 41...
b3 {[%clk 0:00:03.1]} 42. Nc1+ {[%clk 0:00:27.1]} 42... Ka3 {[%clk 0:00:03.7]}
43. Ne2 {[%clk 0:00:23.5]} 43... b2 {[%clk 0:00:03.7]} 44. Kc2 {[%clk
0:00:23.1]} 44... Ka2 {[%clk 0:00:02]} 45. Nc3+ {[%clk 0:00:23]} 45... Ka1
{[%clk 0:00:02.9]} 46. h5 {[%clk 0:00:18.7]} 46... a5 {[%clk 0:00:03.8]} 47. Kb3
{[%clk 0:00:12.9]} 47... Bf6 {[%clk 0:00:02.7]} 48. Nd5 {[%clk 0:00:06.3]} 48...
b1=Q+ {[%clk 0:00:02.8]} 49. Kc4 {[%clk 0:00:07.2]} 49... Qf5 {[%clk 0:00:03.4]}
50. f4 {[%clk 0:00:06.6]} 50... Qe4+ {[%clk 0:00:03.7]} 51. Kc5 {[%clk
0:00:06.8]} 51... Be7+ {[%clk 0:00:03.5]} 52. Kc6 {[%clk 0:00:04.5]} 52... Qe6+
{[%clk 0:00:03.2]} 53. Kc7 {[%clk 0:00:03.7]} 53... Qxd5 {[%clk 0:00:03.8]} 54.
g4 {[%clk 0:00:03.4]} 54... Qd6+ {[%clk 0:00:04.3]} 0-1

[Event "Late-Titled-Tuesday-Blitz-February-06-2024"]
[Site "Chess.com"]
[Date "2024.02.06"]
[Round "1"]
[White "Akhayan"]
[Black "ansko1999"]
[Result "0-1"]
[WhiteElo "2372"]
[BlackElo "2683"]
[TimeControl "180+1"]
[EndTime "14:08:27 PST"]
[Termination "ansko1999 won by resignation"]

1. e4 {[%clk 0:03:00.9]} 1... d6 {[%clk 0:02:59.8]} 2. d4 {[%clk 0:03:00.1]}
2... Nf6 {[%clk 0:03:00]} 3. Nc3 {[%clk 0:03:00.8]} 3... c6 {[%clk 0:02:59.9]}
4. f3 {[%clk 0:02:56.4]} 4... e5 {[%clk 0:02:57]} 5. Be3 {[%clk 0:02:56]} 5...
Nbd7 {[%clk 0:02:54]} 6. Qd2 {[%clk 0:02:55.3]} 6... Be7 {[%clk 0:02:53.3]} 7.
O-O-O {[%clk 0:02:55.8]} 7... Qc7 {[%clk 0:02:43]} 8. g4 {[%clk 0:02:54.9]} 8...
b5 {[%clk 0:02:35.2]} 9. g5 {[%clk 0:02:54.4]} 9... Nh5 {[%clk 0:02:33.9]} 10.
Nce2 {[%clk 0:02:51.5]} 10... Nb6 {[%clk 0:02:09]} 11. Ng3 {[%clk 0:02:50.6]}
11... Nxg3 {[%clk 0:02:02.5]} 12. hxg3 {[%clk 0:02:46.8]} 12... a6 {[%clk
0:02:00]} 13. f4 {[%clk 0:02:36]} 13... Bg4 {[%clk 0:01:57]} 14. Re1 {[%clk
0:02:27.4]} 14... c5 {[%clk 0:01:49.6]} 15. dxe5 {[%clk 0:02:24.8]} 15... dxe5
{[%clk 0:01:49.1]} 16. Rh4 {[%clk 0:02:15.1]} 16... h5 {[%clk 0:01:43.2]} 17.
Be2 {[%clk 0:01:46.2]} 17... Nc4 {[%clk 0:01:36.4]} 18. Bxc4 {[%clk 0:01:45.5]}
18... bxc4 {[%clk 0:01:37.3]} 19. Ne2 {[%clk 0:01:41.2]} 19... Rd8 {[%clk
0:01:26.1]} 20. Qc3 {[%clk 0:01:38.4]} 20... O-O {[%clk 0:01:05.7]} 21. Qxe5
{[%clk 0:01:32.3]} 21... Qd7 {[%clk 0:01:02.1]} 22. Nc3 {[%clk 0:01:23.5]} 22...
Rfe8 {[%clk 0:00:57.4]} 23. Nd5 {[%clk 0:01:12.7]} 23... Bd6 {[%clk 0:00:53.7]}
24. Qc3 {[%clk 0:01:05.7]} 24... Rxe4 {[%clk 0:00:54.1]} 25. Rhh1 {[%clk
0:00:56.5]} 25... Bf8 {[%clk 0:00:54.1]} 26. Nb6 {[%clk 0:00:46]} 26... Qe6
{[%clk 0:00:49.6]} 27. Na4 {[%clk 0:00:41.1]} 27... Qc6 {[%clk 0:00:46.6]} 28.
b3 {[%clk 0:00:40.1]} 28... cxb3 {[%clk 0:00:42.7]} 29. axb3 {[%clk 0:00:40.7]}
29... c4 {[%clk 0:00:42.8]} 30. g6 {[%clk 0:00:38.3]} 30... Qxg6 {[%clk
0:00:40.1]} 31. Nc5 {[%clk 0:00:34.9]} 31... Ree8 {[%clk 0:00:28.7]} 32. b4
{[%clk 0:00:33.3]} 32... Qf5 {[%clk 0:00:25]} 33. Bd2 {[%clk 0:00:31.7]} 33...
Rxe1+ {[%clk 0:00:23.6]} 34. Rxe1 {[%clk 0:00:31.2]} 34... Bxc5 {[%clk
0:00:21.6]} 35. bxc5 {[%clk 0:00:31.6]} 35... Qxc5 {[%clk 0:00:22.2]} 36. Qb4
{[%clk 0:00:31.1]} 36... Qd5 {[%clk 0:00:18.2]} 37. Qc3 {[%clk 0:00:30.2]} 37...
a5 {[%clk 0:00:17.2]} 38. Be3 {[%clk 0:00:29.2]} 38... a4 {[%clk 0:00:15.8]} 39.
Qa3 {[%clk 0:00:28.5]} 39... Qb5 {[%clk 0:00:12.6]} 40. f5 {[%clk 0:00:28.2]}
40... Bxf5 {[%clk 0:00:12]} 41. Bg5 {[%clk 0:00:28.3]} 41... Rb8 {[%clk
0:00:11]} 42. Qa1 {[%clk 0:00:24.9]} 42... c3 {[%clk 0:00:10.7]} 43. Qxc3 {[%clk
0:00:23.5]} 43... Qb1+ {[%clk 0:00:11.1]} 44. Kd2 {[%clk 0:00:24.2]} 44... Qb5
{[%clk 0:00:09.5]} 45. Kc1 {[%clk 0:00:22]} 45... Bg6 {[%clk 0:00:09.6]} 46. Re5
{[%clk 0:00:20.5]} 46... Qb1+ {[%clk 0:00:09.4]} 47. Kd2 {[%clk 0:00:20.9]}
47... Qg1 {[%clk 0:00:08.6]} 48. Qe3 {[%clk 0:00:19.5]} 48... Qg2+ {[%clk
0:00:08.8]} 49. Qe2 {[%clk 0:00:18.1]} 49... Qxg3 {[%clk 0:00:07.5]} 50. Qe3
{[%clk 0:00:15.1]} 50... Qg2+ {[%clk 0:00:07.5]} 51. Qe2 {[%clk 0:00:15.5]}
51... Qc6 {[%clk 0:00:07.9]} 52. Bf4 {[%clk 0:00:12.3]} 52... Qxc2+ {[%clk
0:00:08]} 53. Ke1 {[%clk 0:00:11.6]} 53... Rb1+ {[%clk 0:00:08.2]} 54. Kf2
{[%clk 0:00:12.1]} 54... Qxe2+ {[%clk 0:00:08.5]} 55. Rxe2 {[%clk 0:00:11.9]}
55... Rb4 {[%clk 0:00:07.1]} 56. Bd6 {[%clk 0:00:11.4]} 56... Rc4 {[%clk
0:00:07]} 57. Re8+ {[%clk 0:00:10.9]} 57... Kh7 {[%clk 0:00:07.7]} 58. Ra8
{[%clk 0:00:10.9]} 58... Rd4 {[%clk 0:00:07.7]} 59. Be5 {[%clk 0:00:09.8]} 59...
Re4 {[%clk 0:00:08.2]} 60. Bb2 {[%clk 0:00:09.5]} 60... h4 {[%clk 0:00:08.6]}
61. Bc1 {[%clk 0:00:09]} 61... Rc4 {[%clk 0:00:08.9]} 62. Be3 {[%clk 0:00:08.6]}
62... h3 {[%clk 0:00:09]} 63. Kg3 {[%clk 0:00:07.9]} 63... Rc3 {[%clk
0:00:09.2]} 64. Kf2 {[%clk 0:00:07.5]} 64... Rxe3 {[%clk 0:00:09.1]} 65. Kxe3
{[%clk 0:00:07.7]} 65... h2 {[%clk 0:00:09.9]} 66. Rxa4 {[%clk 0:00:05.8]} 66...
h1=Q {[%clk 0:00:10.4]} 67. Rf4 {[%clk 0:00:06.5]} 67... Qe1+ {[%clk 0:00:10.3]}
0-1